[Event "Mitropa Cup Open 2022"]
[Site "Corte"]
[Date "2022.05.07"]
[Round "8.8"]
[White "Frank, Adam"]
[Black "Loiseau, Quentin"]
[Result "0-1"]
[ECO "B33"]
[WhiteElo "2284"]
[BlackElo "2445"]
[Annotator "TA"]
[PlyCount "100"]
[EventDate "2022.04.30"]
[EventType "team-tourn"]
[EventCountry "FRA"]
[SourceTitle "playchess.com"]
[Source "ChessBase"]
[SourceQuality "1"]
[WhiteTeam "Czech Republic"]
[BlackTeam "France"]
[WhiteTeamCountry "CZE"]
[BlackTeamCountry "FRA"]
[TimeControl "40/5400+30:1800+30"]

{[%evp 28,100,20,7,4,0,6,-30,-29,-37,-41,-50,-12,-33,26,0,19,0,0,0,0,0,0,-41,-33,-62,0,-56,-57,-102,-104,-115,-114,-117,-119,-457,-441,-422,-402,-523,-357,-683,-668,-805,-825,-670,-324,-313,-305,-852,-788,-864,-859,-864,0,0,0,-871,-864,-832,-845,-765,-823,-799,-755,-720,-657,-893,-882,-867,-819,-775,-679,-493,-478]} 1. e4 {[%emt 0:00:02]} c5 {[%emt 0:00:11]} 2. Nf3 {[%emt 0:00:05]} Nc6 {[%emt 0:00:10]} 3. d4 {[%emt 0:00:03]} cxd4 {[%emt 0:00:07]} 4. Nxd4 {[%emt 0:00:05]} Nf6 {[%emt 0:00:35]} 5. Nc3 {[%emt 0:00:05]} e5 {[%emt 0:00:10]} 6. Ndb5 {[%emt 0:00:03]} d6 {[%emt 0:00:06]} 7. Bg5 {[%emt 0:00:05]} a6 {[%emt 0:00:08]} 8. Na3 {[%emt 0:00:03]} b5 {[%emt 0:00:15]} 9. Nd5 {[%emt 0:00:03]} Be7 {[%emt 0:00:08]} 10. Bxf6 {[%emt 0:00:04]} Bxf6 {[%emt 0:00:05]} 11. c3 {[%emt 0:00:04]} Bg5 {[%emt 0:00:09]} 12. Nc2 {[%emt 0:00:04]} Rb8 {[%emt 0:00:08]} 13. a4 {[%emt 0:01:08]} bxa4 {[%emt 0:00:50]} 14. Ncb4 {[%emt 0:00:05]} Nxb4 {[%emt 0:00:09]} 15. Nxb4 {[%emt 0:00:23] [#] And now Nc6 would win.} Bd7 {[%emt 0:00:36] Prevents Nc6. White must now prevent ...a5. B33: Sicilian: Pelikan and Sveshnikov Variations.} 16. Bxa6 {[%emt 0:00:53]} (16. Qxd6 Be7 17. Qxe5 O-O 18. Bxa6 Bxb4 19. cxb4 Qb6 $17) 16... Qa5 {[%emt 0:01:36] ...Rxb4 is the strong threat.} 17. Qd3 {[%emt 0:13:56]} Rxb4 {[%emt 0:06:32] Black has an edge.} 18. cxb4 {[%emt 0:01:13]} Qxb4+ {[%emt 0:00:01]} 19. Kf1 {[%emt 0:00:05]} O-O {[%emt 0:02:32][%cal Be8g8,Bg8h8,Bh8g7][%mdl 1056] White should prevent ...Rb8. Black has compensation.} (19... Qxb2 20. Rb1 Qd4 21. Rb8+ Bd8 22. Qxd4 exd4 23. Ke2 $16) 20. h4 {[%emt 0:09:23] [#]} Bh6 $146 {[%emt 0:06:51]} (20... Qxb2 $2 21. Rb1 Qd2 22. hxg5 Qxg5 23. Qxd6 $18) (20... Bd8 $15) ({Predecessor:} 20... Bd8 21. Rd1 Qxb2 22. Qxd6 Bb6 23. Rd2 Qb1+ 24. Rd1 Qb2 25. Rd2 {½-½ (25) Licznerski,L (2271)-Gawronski,L (2072) Krakow 2011}) 21. g3 $11 {[%emt 0:02:42]} Bc6 {[%emt 0:17:48]} (21... Qxb2 22. Kg2 $14) (21... Rb8 $5 {[%cal Rd7c6]}) 22. Bc4 {[%emt 0:01:22]} Kh8 $1 {[%emt 0:05:39]} 23. g4 {[%emt 0:31:34] [#] Threatens to win with g5.} f5 {[%emt 0:12:48]} (23... Qxb2 24. Rb1 Qd4 25. Qxd4 exd4 26. Bd5 Bxd5 27. exd5 $14) 24. gxf5 {[%emt 0:00:04]} g6 {[%emt 0:00:36]} 25. f6 {[%emt 0:00:03]} Rxf6 {[%emt 0:00:54]} 26. Rh2 {[%emt 0:00:04]} Bf4 {[%emt 0:12:54]} ({Don't play} 26... Qxb2 27. Rb1 Qd4 28. Rb8+ Bf8 29. Qxd4 exd4 30. Bd5 Bxd5 31. exd5 $16) (26... Rf4 $15 27. Re1 Qc5) 27. Rg2 {[%emt 0:00:26]} ({White should try} 27. Rh3 $1 $11) 27... Kg7 $15 {[%emt 0:12:01]} 28. Kg1 {[%emt 0:14:15]} Qxb2 {[%emt 0:02:24]} 29. Rb1 {[%emt 0:00:05]} Qd4 {[%emt 0:01:04] Really sharp! Black is more active.} 30. Qxd4 {[%emt 0:04:10]} exd4 {[%emt 0:00:01]} 31. Bd5 {[%emt 0:03:00][%mdl 8192]} (31. Bd3 $17 {nothing else works.}) 31... Bxd5 $19 {[%emt 0:00:44]} 32. exd5 {[%emt 0:00:05][%mdl 4096] Endgame KRR-KRB} d3 {[%emt 0:00:26]} 33. Ra1 {[%emt 0:10:19]} Be5 {[%emt 0:02:19]} 34. Ra2 {[%emt 0:01:26]} (34. Rd1 a3 35. Rg4) 34... Rf4 {[%emt 0:01:42]} 35. f3 {[%emt 0:03:39]} Bc3 {[%emt 0:05:45]} 36. Kf2 {[%emt 0:05:22]} Rb4 {[%emt 0:00:58]} (36... Rxh4 $142 37. Ke3 d2 38. Raxd2 Bxd2+ 39. Kxd2 h5) 37. Rg4 {[%emt 0:01:45]} Bd4+ {[%emt 0:06:49]} (37... d2 $2 38. Ke2 Rb1 39. Rxd2 Bxd2 40. Kxd2 $19) 38. Ke1 $2 {[%emt 0:00:13]} (38. Kg3 Rc4 39. h5) 38... h5 {[%emt 0:01:28]} ({Wrong is} 38... Bc3+ $2 39. Kf2 Rb1 40. Ke3 $19) 39. Re4 {[%emt 0:00:57]} Bc3+ {[%emt 0:00:04]} 40. Kf2 {[%emt 0:00:03]} Bd4+ {[%emt 0:01:18]} 41. Ke1 $1 {[%emt 0:01:54]} Bc3+ {[%emt 0:02:14]} 42. Kf2 {[%emt 0:00:37]} d2 {[%emt 0:05:01] Black is clearly winning.} 43. Ke2 {[%emt 0:00:06]} Rb1 {[%emt 0:01:49]} 44. Rxd2 {[%emt 0:00:05]} Bxd2 {[%emt 0:00:03]} 45. Kxd2 {[%emt 0:00:07] KR-KR} a3 {[%emt 0:00:09][%cal Ba4a3,Ba3a2][%mdl 32]} ({Avoid the trap} 45... Rb2+ $2 46. Ke3 $19) 46. Ra4 {[%emt 0:00:19]} Rb3 {[%emt 0:00:09]} 47. Ra6 {[%emt 0:00:23]} Rxf3 {[%emt 0:00:10][%cal Oa3a2]} 48. Ke2 {[%emt 0:00:22]} Rh3 {[%emt 0:00:19]} 49. Kf2 {[%emt 0:01:36]} a2 {[%emt 0:00:43] ( -> ...Rh1)} 50. Kg2 {[%emt 0:00:04] Against Rh1} Rxh4 {[%emt 0:00:06] Weighted Error Value: White=0.54/Black=0.31} 0-1

[Event "Mitropa Cup Open 2022"]
[Site "Corte"]
[Date "2022.05.08"]
[Round "9.1"]
[White "Koellner, Ruben Gideon"]
[Black "Dragnev, Valentin"]
[Result "1/2-1/2"]
[ECO "D02"]
[WhiteElo "2440"]
[BlackElo "2556"]
[Annotator "TA"]
[PlyCount "51"]
[EventDate "2022.04.30"]
[EventType "team-tourn"]
[EventCountry "FRA"]
[SourceTitle "playchess.com"]
[Source "ChessBase"]
[SourceQuality "1"]
[WhiteTeam "Germany"]
[BlackTeam "Austria"]
[WhiteTeamCountry "GER"]
[BlackTeamCountry "AUT"]
[TimeControl "40/5400+30:1800+30"]

{[%evp 9,51,0,9,2,7,15,12,-13,0,0,0,0,6,9,6,-12,-6,-5,-10,-18,-14,-8,-4,-11,7,-20,-16,-20,0,0,0,0,0,-5,14,-4,0,-7,0,0,0,0,0,0]} 1. d4 {[%emt 0:01:32]} Nf6 {[%emt 0:00:23]} 2. Nf3 {[%emt 0:00:07]} d5 {[%emt 0:00:12]} 3. Bf4 {[%emt 0:00:13]} c5 {[%emt 0:00:23]} 4. e3 {[%emt 0:00:07]} Nc6 {[%emt 0:00:06]} 5. Nbd2 {[%emt 0:00:04]} Bg4 {[%emt 0:00:15] The position is equal.} 6. Bb5 {[%emt 0:00:41] D02: 1 d4 d5 2 Nf3 sidelines, including 2...Nf6 3 g3 and 2...Nf6 3 Bf4.} cxd4 {[%emt 0:01:00]} 7. exd4 {[%emt 0:00:40]} e6 {[%emt 0:00:30]} 8. c4 {[%emt 0:21:24]} Bd6 {[%emt 0:00:52]} 9. Bxd6 {[%emt 0:06:22]} Qxd6 {[%emt 0:01:23]} 10. c5 {[%emt 0:00:21] [#]} Qf4 $146 {[%emt 0:00:50]} ({Predecessor:} 10... Qc7 11. Qa4 Bxf3 12. Nxf3 O-O 13. O-O a6 14. Bxc6 Qxc6 15. Qxc6 bxc6 16. Ne5 Rfc8 {½-½ (52) Ivanisevic,I (2599)-Fridman,D (2626) Abu Dhabi 2021}) 11. Qe2 {[%emt 0:07:28] Hoping for Qe5.} O-O {[%emt 0:04:01]} 12. Bxc6 {[%emt 0:01:06]} bxc6 {[%emt 0:08:05]} 13. Qe5 {[%emt 0:00:15]} Qh6 {[%emt 0:01:16]} 14. O-O {[%emt 0:05:57]} Rab8 {[%emt 0:00:40]} 15. b3 {[%emt 0:00:36]} Rfc8 {[%emt 0:03:08]} 16. Rfe1 {[%emt 0:02:07]} Rb7 {[%emt 0:05:03]} 17. Qe3 {[%emt 0:07:10]} Qxe3 {[%emt 0:03:04]} 18. Rxe3 {[%emt 0:00:07]} Bxf3 {[%emt 0:02:01]} 19. Nxf3 {[%emt 0:00:13]} Nd7 {[%emt 0:01:34]} 20. Kf1 {[%emt 0:08:49]} h6 {[%emt 0:02:16]} 21. Rc1 {[%emt 0:00:56]} Re8 {[%emt 0:10:40]} 22. Rce1 {[%emt 0:01:34]} Reb8 {[%emt 0:01:01]} 23. Rd1 {[%emt 0:01:41]} Re8 {[%emt 0:03:37]} 24. Rde1 {[%emt 0:00:06]} Reb8 {[%emt 0:05:19]} 25. Rd1 {[%emt 0:01:46]} Re8 {[%emt 0:01:33]} 26. Rde1 {[%emt 0:03:24] A balanced but interesting game.  Weighted Error Value: White=0.06 (flawless) /Black=0.05 (flawless)} 1/2-1/2

[Event "Mitropa Cup Open 2022"]
[Site "Corte"]
[Date "2022.05.08"]
[Round "9.1"]
[White "Piscopo, Pierluigi"]
[Black "Maurizzi, Marc`Andria"]
[Result "0-1"]
[ECO "B30"]
[WhiteElo "2347"]
[BlackElo "2483"]
[Annotator "TA"]
[PlyCount "102"]
[EventDate "2022.04.30"]
[EventType "team-tourn"]
[EventCountry "FRA"]
[SourceTitle "playchess.com"]
[Source "ChessBase"]
[SourceQuality "1"]
[WhiteTeam "France"]
[BlackTeam "France"]
[WhiteTeamCountry "ITA"]
[TimeControl "40/5400+30:1800+30"]

{[%evp 11,102,19,29,-20,-20,-23,-18,-35,-22,-24,-29,-24,-20,-27,-38,-43,-36,-41,-36,-33,0,0,0,0,0,-11,2,-16,-12,-19,0,0,0,0,0,0,0,0,0,-4,0,-15,-19,-12,28,-262,-239,-225,-229,-325,-275,-289,-36,-32,-34,-31,-40,-252,-250,-237,-124,-90,-101,-365,-368,-342,-334,-327,-233,-239,-216,-208,-191,-220,-93,-93,-94,-247,-243,-541,-541,-628,-522,-29978,-29979,-29979,-29980,-29978,-29980,-29997,-29998,-29998,-29999]} 1. e4 {[%emt 0:00:04]} c5 {[%emt 0:00:27]} 2. Nf3 {[%emt 0:00:25]} Nc6 {[%emt 0:00:17]} 3. Bb5 {[%emt 0:01:10]} e6 {[%emt 0:00:14]} 4. O-O {[%emt 0:07:16]} Nge7 {[%emt 0:00:02]} 5. Re1 {[%emt 0:00:09]} Nd4 {[%emt 0:00:04]} 6. Nxd4 {[%emt 0:10:39]} cxd4 {[%emt 0:00:02]} 7. c4 {[%emt 0:00:54] B30: Sicilian: 2...Nc6 3 Bb5, lines without ...g6.} (7. d3 $142) 7... e5 $11 {[%emt 0:07:50]} 8. d3 {[%emt 0:16:23]} Ng6 {[%emt 0:03:55] [#] Against f4} 9. Qh5 $146 {[%emt 0:02:14] The position is equal.} ({Predecessor:} 9. Ba4 Bb4 10. Nd2 O-O 11. Bc2 Qg5 12. Nf3 Qd8 13. Nd2 b6 14. a3 Be7 15. Ba4 {½-½ (39) Ivanovic,Z (2302)-Felytin,L (2459) ICCF email 2017}) 9... a6 {[%emt 0:08:45]} 10. Ba4 {[%emt 0:00:26]} ({But not} 10. Bg5 $2 f6 11. Bd2 axb5 $19) 10... Qa5 {[%emt 0:08:42][%csl LRa4,LRe1][%cal Ra5e1]} 11. Qd1 {[%emt 0:00:23]} Be7 {[%emt 0:00:20]} 12. a3 {[%emt 0:09:39]} O-O {[%emt 0:06:22]} 13. Nd2 {[%emt 0:07:10][%cal Bb1d2,Bd2f1,Bf1g3,Bg3e4][%mdl 32]} d6 {[%emt 0:03:02]} 14. b4 {[%emt 0:02:29]} Qc7 {[%emt 0:01:09]} 15. Nf1 {[%emt 0:00:22]} f5 {[%emt 0:13:03]} 16. exf5 {[%emt 0:00:20]} Bxf5 {[%emt 0:00:08]} 17. Ng3 {[%emt 0:00:11]} Be6 {[%emt 0:00:10]} 18. Ne4 {[%emt 0:02:18]} Rf5 {[%emt 0:02:13]} 19. Bd2 {[%emt 0:08:39]} Raf8 {[%emt 0:01:29]} 20. Rc1 {[%emt 0:00:17]} Nh4 {[%emt 0:08:06]} 21. Qe2 {[%emt 0:04:42]} b5 {[%emt 0:09:11]} 22. Bb3 {[%emt 0:00:47][%cal Oc4b5]} Qd7 {[%emt 0:00:48]} 23. Rf1 {[%emt 0:04:19]} R5f7 {[%emt 0:07:16]} 24. f3 {[%emt 0:01:47]} Kh8 {[%emt 0:02:12]} 25. Rf2 {[%emt 0:03:09]} h6 {[%emt 0:02:45]} 26. Qd1 {[%emt 0:02:52]} bxc4 {[%emt 0:02:47]} 27. dxc4 {[%emt 0:00:16]} Qb7 {[%emt 0:01:04][%cal Ob7e4]} 28. Be1 $2 {[%emt 0:02:13][%mdl 8192] [#]} (28. Qe2 $1 $11 {and White is okay.}) 28... Nxg2 $1 $19 {[%emt 0:05:41][%mdl 512]} 29. Kxg2 {[%emt 0:09:55]} Rxf3 {[%emt 0:00:32]} 30. Bc2 {[%emt 0:00:45]} (30. Rxf3 $142 Qxe4 31. Bc2) 30... R3f4 {[%emt 0:03:09] ...Rg4+ is the strong threat.} (30... Rxa3 31. Rxf8+ Bxf8 32. Kg1 $17) 31. Qd3 {[%emt 0:01:57] Black must now prevent Rxf4.} d5 $2 {[%emt 0:02:12]} (31... Bg5 $19 32. Rxf4 Rxf4) 32. Nc5 $15 {[%emt 0:01:43][%csl Gc2][%cal Rd3h7]} dxc4+ {[%emt 0:00:02]} 33. Nxb7 {[%emt 0:00:06][%csl Gc2][%cal Rd3h7]} cxd3 {[%emt 0:00:04] Dancing on a razor blade.} 34. Bxd3 $2 {[%emt 0:00:13]} (34. Rxf4 $15 Bd5+ 35. Kg1 Rxf4 36. Bxd3 Bxb7 37. Rc7) 34... Bd5+ $19 {[%emt 0:00:39][%cal Be6d5,Bd5b7,Bb7g2][%mdl 32]} 35. Kg1 {[%emt 0:01:04]} Rg4+ {[%emt 0:02:40]} ({Inferior is} 35... Bxb7 36. Rxf4 Rxf4 37. Rc7 $15) (35... Bg5 $1 $19 36. Rc5 Bxb7 37. Rxe5 Rg4+ 38. Kf1 Bf3) 36. Kf1 $17 {[%emt 0:00:06]} Bxb7 {[%emt 0:00:14]} 37. Rc7 $2 {[%emt 0:00:20][%mdl 8192]} (37. Rxf8+ $17 Bxf8 38. Bg3) 37... Bg2+ $1 $19 {[%emt 0:00:28]} 38. Ke2 {[%emt 0:00:06]} Bf6 {[%emt 0:00:22]} 39. Bf5 {[%emt 0:01:21]} Rf4 {[%emt 0:01:01] Hoping for ...Rxf2+.} 40. Rc8 {[%emt 0:00:49]} Rxc8 {[%emt 0:00:20]} 41. Bxc8 {[%emt 0:30:07]} Rxf2+ {[%emt 0:03:38]} 42. Bxf2 {[%emt 0:00:00][%mdl 4096] Endgame KBB-KBB} a5 {[%emt 0:18:49]} (42... Bd5 $19 {and Black stays clearly on top. aiming for ...Bc4+.} 43. Bxa6 Kg8) 43. bxa5 $17 {[%emt 0:00:00] And now a6 would win.} Bd8 {[%emt 0:00:32]} 44. Bg3 $2 {[%emt 0:00:00] [#]} (44. a6 $17 Bb6 45. Bg3) 44... e4 $1 $19 {[%emt 0:01:21]} ({Not} 44... Bxa5 45. Bxe5 Bb6 46. Kd3 $11) 45. Kf2 {[%emt 0:00:00]} (45. Bg4 Bxa5 46. Kf2) 45... Bf3 {[%emt 0:03:01]} 46. a6 {[%emt 0:01:06]} Bb6 {[%emt 0:00:08] ( -> ...d3+)} 47. Bc7 {[%emt 0:01:24] [#]} d3+ $1 {[%emt 0:01:41] Black mates.} 48. Bxb6 {[%emt 0:00:35]} d2 {[%emt 0:00:02]} 49. a7 {[%emt 0:00:09]} d1=Q {[%emt 0:00:06]} 50. a8=Q {[%emt 0:00:32]} Qe2+ {[%emt 0:00:19]} 51. Kg3 {[%emt 0:00:19]} Qg2+ {[%emt 0:00:02] Weighted Error Value: White=0.66/Black=0.22 (precise)} 0-1

[Event "Mitropa Cup Open 2022"]
[Site "Corte"]
[Date "2022.05.08"]
[Round "9.2"]
[White "Blohberger, Felix"]
[Black "Krastev, Alexander"]
[Result "1/2-1/2"]
[ECO "B31"]
[WhiteElo "2510"]
[BlackElo "2412"]
[Annotator "TA"]
[PlyCount "116"]
[EventDate "2022.04.30"]
[EventType "team-tourn"]
[EventCountry "FRA"]
[SourceTitle "playchess.com"]
[Source "ChessBase"]
[SourceQuality "1"]
[WhiteTeam "Austria"]
[BlackTeam "Germany"]
[WhiteTeamCountry "AUT"]
[BlackTeamCountry "GER"]
[TimeControl "40/5400+30:1800+30"]

{[%evp 9,116,4,16,12,26,15,44,20,9,-20,-14,-16,-17,-4,-12,-7,20,0,40,43,26,37,50,33,52,51,61,45,42,47,35,-12,-13,-44,-31,-88,-93,-93,-87,-81,-83,-88,-71,-68,0,0,0,-89,0,-8,0,0,0,-47,0,-68,0,0,0,-55,0,0,0,0,0,-120,0,0,0,0,0,0,0,0,0,0,0,-48,0,0,0,0,0,-14,0,0,0,0,0,-24,-14,-14,0,0,0,0,0,-129,0,0,0,0,0,-22,0,0,0,0,0]} 1. e4 {[%emt 0:00:03]} c5 {[%emt 0:02:27]} 2. Nf3 {[%emt 0:00:07]} Nc6 {[%emt 0:00:05]} 3. Bb5 {[%emt 0:00:04]} g6 {[%emt 0:00:03]} 4. Bxc6 {[%emt 0:00:25]} bxc6 {[%emt 0:00:04]} 5. d4 {[%emt 0:00:08]} Ba6 {[%emt 0:15:10]} 6. dxc5 {[%emt 0:02:09] B31: Sicilian: 2...Nc6 3 Bb5 g6.} Qa5+ {[%emt 0:14:50]} 7. Nbd2 {[%emt 0:00:08]} Bg7 {[%emt 0:01:01]} 8. a3 {[%emt 0:02:35] White is slightly better.} (8. Rb1 $5 {[%cal Rb2b4]}) 8... Qxc5 {[%emt 0:17:33]} 9. b4 {[%emt 0:00:07]} Qb6 {[%emt 0:09:48]} (9... Qc3 $2 10. Rb1 $18) 10. Rb1 {[%emt 0:00:12]} d5 {[%emt 0:00:22] [#] Inhibits c4.} 11. e5 $146 {[%emt 0:01:40] Inhibits Nf6.} ({Predecessor:} 11. b5 Bxb5 12. exd5 cxd5 13. c4 Qe6+ 14. Kf1 Bxc4+ 15. Nxc4 dxc4 16. Qa4+ Qd7 17. Qxd7+ Kxd7 {1-0 (35) Grischuk,A (2766)-Gschnitzer,A (2425) Chess.com INT 2019}) 11... Nh6 {[%emt 0:02:05]} 12. h3 {[%emt 0:17:12] Prevents Ng4.} O-O {[%emt 0:10:49]} 13. Nb3 $1 {[%emt 0:01:10][%cal Bd2b3,Bb3c5,Bc5d7][%mdl 32]} f6 {[%emt 0:09:37]} 14. Be3 {[%emt 0:06:05]} Qc7 {[%emt 0:04:41]} (14... Qb5 15. Nfd4 Qb7 16. Nc5 $16) 15. Nc5 {[%emt 0:00:13]} Bc4 {[%emt 0:05:33]} 16. Nd2 {[%emt 0:10:35] Pair of Knights!} Qxe5 {[%emt 0:02:46]} 17. Nxc4 {[%emt 0:01:07]} dxc4 {[%emt 0:00:06]} 18. Nd7 {[%emt 0:00:13] White is more active.} Qe4 {[%emt 0:00:06]} 19. Nxf8 {[%emt 0:22:37][%cal Oe1g1]} Qxg2 {[%emt 0:00:03] [#]} 20. Rf1 {[%emt 0:03:02]} (20. Ke2 $1 $14 {might be stronger.} Rxf8 (20... Kxf8 21. Qd4) 21. Qd4) 20... Kxf8 $11 {[%emt 0:00:17]} 21. Bxh6 {[%emt 0:03:13]} Bxh6 {[%emt 0:00:01]} 22. Qd4 {[%emt 0:00:10]} (22. Qg4 $1 $15 Qd5 23. f4) 22... Qf3 $17 {[%emt 0:01:34]} 23. Rg1 {[%emt 0:02:15]} c3 {Hoping for ...Bd2+.} ({Much weaker is} 23... Qxh3 $6 24. Rd1 $15) (23... Qxa3 $6 24. Qxc4 Qxh3 25. Rd1 $15) 24. Qg4 {[%emt 0:04:57]} Qd5 {[%emt 0:02:14] Threatens to win with ...Qd2+.} 25. Kf1 {[%emt 0:00:42]} Bd2 {[%emt 0:00:59]} 26. Rg3 {[%emt 0:01:21]} Qh1+ {[%emt 0:00:25]} (26... f5 $5 {[%cal Rf5g4]} 27. Qh4 f4 $15) 27. Rg1 {[%emt 0:00:03]} Qd5 {[%emt 0:00:04]} 28. Rg3 $1 {[%emt 0:00:04]} Qa2 {[%emt 0:01:10]} (28... f5 $17 29. Qh4 f4) 29. Qd1 $11 {[%emt 0:00:06]} Qc4+ {[%emt 0:00:33]} 30. Qe2 $1 {[%emt 0:01:54]} Qa2 {[%csl LRa3,LRb1,LRc2]} 31. Qd1 {[%emt 0:01:04]} (31. Rb3 $11 {was preferrable.}) 31... Qf7 {[%emt 0:01:02]} (31... a5 $15 {feels stronger.}) 32. Qf3 (32. Rd3 $11) 32... Qe6 {[%emt 0:00:30]} (32... Rd8 $1 $15) 33. Qg4 {[%emt 0:02:17]} Qd5 {[%emt 0:00:30]} 34. Qf3 {[%emt 0:03:31]} (34. Rd3 $11 Qa2 35. Qd1) 34... Qe6 {[%emt 0:00:28]} (34... Rd8 $15) 35. Qg4 {[%emt 0:00:25]} f5 {[%emt 0:00:30]} 36. Qd4 {[%emt 0:01:52]} Kf7 37. Kg2 {[#]} (37. Rd3 $11 {remains equal.}) 37... a6 {[%emt 0:01:00]} (37... Qd5+ $1 $17 38. Qxd5+ cxd5) 38. Rd3 {[%emt 0:04:41]} Rb8 {[%emt 0:00:31]} 39. Rb3 {[%emt 0:00:57]} Rb5 40. Qh8 {[%emt 0:00:09]} Qe4+ {[%emt 0:00:55]} 41. Kg1 {[%emt 0:34:23]} Qe1+ {[%emt 0:25:29]} 42. Kg2 {[%emt 0:00:00]} Qe4+ {[%emt 0:00:05]} 43. Kh2 {[%emt 0:00:00]} (43. Kg1 $11) 43... Bf4+ {[%emt 0:06:00]} (43... Qh4 $1 $15 44. Qd4 f4) 44. Kg1 {[%emt 0:00:00] Dancing on a razor blade.} Qe1+ {[%emt 0:00:21]} 45. Kg2 {[%emt 0:00:00]} Qe4+ $1 {[%emt 0:00:11]} 46. Rf3 {[%emt 0:00:00]} Bd2 {[%emt 0:00:59]} 47. Qxh7+ {[%emt 0:00:00]} Kf6 $1 48. Qh8+ {[%emt 0:00:00]} Kf7 {[%emt 0:00:09]} (48... Kg5 $2 49. Rb1 f4 50. Qg7 $18 (50. Rg1 Kf5 $16)) 49. Rbxc3 {[%emt 0:00:00]} Bxc3 {[%emt 0:00:05]} 50. Qxc3 {[%emt 0:00:00][%mdl 4096] Endgame KQR-KQR} Re5 {[%emt 0:01:33]} 51. Qb3+ {[%emt 0:00:00]} Kg7 {[%emt 0:00:35]} 52. Qd3 {[%emt 0:00:00]} c5 {[%emt 0:00:25]} 53. Qxa6 {[%emt 0:00:00] [#]} (53. Qxe4 $11 Rxe4 54. Re3 (54. bxc5 Rc4 $15) 54... Rxe3 55. fxe3) 53... cxb4 {[%emt 0:00:20]} ({Black should play} 53... c4 $1 $17 {And now ...f4 would win.} 54. Qc8 g5) 54. axb4 {[%emt 0:00:02] The position is equal.} Qxb4 {[%emt 0:00:30]} 55. c4 {[%emt 0:02:17]} Qb1 {[%emt 0:00:20] aiming for ...Re1.} 56. Rg3 {[%emt 0:01:25]} f4 {[%emt 0:00:49]} 57. Rg4 {[%emt 0:00:39]} Re1 {[%emt 0:00:44] ( -> ...Qe4+)} 58. Qc6 {[%emt 0:01:21]} Qe4+ {[%emt 0:00:24] Weighted Error Value: White=0.17 (very precise) /Black=0.17 (very precise)} 1/2-1/2

[Event "Mitropa Cup Open 2022"]
[Site "Corte"]
[Date "2022.05.08"]
[Round "9.2"]
[White "Boyer, Mahel"]
[Black "Humeau, Cyril"]
[Result "1-0"]
[ECO "A40"]
[WhiteElo "2431"]
[BlackElo "2290"]
[Annotator "TA"]
[PlyCount "37"]
[EventDate "2022.04.30"]
[EventType "team-tourn"]
[EventCountry "FRA"]
[SourceTitle "playchess.com"]
[Source "ChessBase"]
[SourceQuality "1"]
[WhiteTeam "France"]
[BlackTeam "France"]
[WhiteTeamCountry "FRA"]
[BlackTeamCountry "FRA"]
[TimeControl "40/5400+30:1800+30"]

{[%evp 9,37,41,59,41,39,47,41,25,75,66,75,87,102,109,83,87,110,103,104,120,297,288,287,292,602,341,426,413,782,624]} 1. d4 {[%emt 0:00:10]} b5 {[%emt 0:00:04]} 2. e4 {[%emt 0:02:34]} Bb7 {[%emt 0:00:05]} 3. Bd3 {[%emt 0:01:11]} e6 {[%emt 0:00:07]} 4. Nf3 {[%emt 0:03:57]} c5 {[%emt 0:01:28]} 5. dxc5 {[%emt 0:22:17]} Bxc5 {[%emt 0:00:13]} 6. Nbd2 {[%emt 0:00:05] A40: Unusual replies to 1 d4.} a6 {[%emt 0:06:04]} 7. a4 {[%emt 0:03:24]} b4 {[%emt 0:00:22]} 8. e5 {[%emt 0:00:33] White is slightly better.} d5 {[%emt 0:00:27] Against Nc4} (8... Qc7 $11) 9. Nb3 $16 {[%emt 0:02:58] [#]} Nd7 $146 {[%emt 0:04:59]} ({Predecessor:} 9... Ba7 10. Nfd4 Nd7 11. f4 Ne7 12. Be3 g6 13. Qd2 Nc6 14. a5 Qe7 15. Bxa6 Bxa6 16. Nxc6 Bxe3 17. Qxe3 Qh4+ 18. Qf2 Qg4 19. Nxb4 O-O 20. Nxa6 Rxa6 21. Qe2 {1-0 (21) Lajthajm,B (2422)-Henning,M (1966) Wunsiedel 2018}) 10. Bd2 {[%emt 0:02:13]} a5 {[%emt 0:00:28]} 11. Nxc5 {[%emt 0:06:21]} ({Reject} 11. Bb5 $6 Bb6 $11) 11... Nxc5 {[%emt 0:00:05]} 12. Bb5+ {[%emt 0:00:01]} Nd7 {[%emt 0:01:07] [#]} 13. Nd4 $1 $36 {[%emt 0:00:14][%cal Bf3d4,Bd4e6,Be6f4][%mdl 2080] White is in control.} Ne7 {[%emt 0:01:34] [#]} 14. Qg4 $1 {[%emt 0:00:19] 0x0.002c8c27fb05dp-1022s more active pieces.} h5 $2 {[%emt 0:10:30] Loses the game.} (14... Kf8 $16) 15. Qxg7 $18 {[%emt 0:05:02]} Rg8 {[%emt 0:00:40]} 16. Qh7 {[%emt 0:00:19]} Rxg2 $2 {[%emt 0:07:19]} (16... Ba6 17. Qxh5 Ng6) 17. Qxh5 {[%emt 0:05:25]} Rg6 {[%emt 0:16:14]} 18. Nxe6 {[%emt 0:03:33]} Qb8 {[%emt 0:16:52]} (18... fxe6 $2 19. Rg1 Qc7 20. Qh8+ Ng8 21. Rxg6 $18) (18... Qb6 $142 19. Nf4 O-O-O 20. Nxg6 Nxg6) 19. Nf4 {[%emt 0:01:38] Weighted Error Value: White=0.18 (very precise) /Black=0.56} 1-0